fUSD/lending_fUSD_20250526
["ID","MTS","AMOUNT","RATE_DAILY","PERIOD"]
[362408880,1748256641238,-798.69,0.00026021,2]
[362408882,1748256641247,-1000.0,0.00026027,2]
[362408884,1748256641257,-7591.06985437,0.00026143,2]
[362408886,1748256641266,-150.0,0.00026297,2]
[362408888,1748256641275,-150.0,0.00026297,2]
[362408890,1748256641284,-211.184703,0.00026297,2]
[362408892,1748256641294,-4061.40336909,0.00026297,2]
[362408894,1748256641305,-150.0,0.00026297,2]
[362408896,1748256641316,-571.0148464,0.00026297,2]
[362408898,1748256641327,-1425.02011923,0.00026397,2]
[362408900,1748256641336,-175.97,0.00026676,2]
[362408902,1748256641347,-533.08429402,0.00026728,15]
[362408904,1748256641357,-4609.0,0.00026826,2]
[362408906,1748256641366,-185.91,0.000269,31]
[362408908,1748256641375,-300.0,0.0002697,2]
[362408910,1748256641386,-400.0,0.0002697,2]
[362408912,1748256641396,-159.43065107,0.00027373,2]
[362408914,1748256641406,-159.47477646,0.00027373,2]
[362408916,1748256641415,-150.0,0.00027397,2]
[362408918,1748256641424,-300.0,0.00027397,2]
[362408920,1748256641434,-150.99,0.00027397,2]
[362408922,1748256641443,-334.76,0.00027397,2]
[362408924,1748256641452,-30734.87,0.00027397,10]
[362408926,1748256641462,-822.72,0.00027397,2]
[362408928,1748256641471,-2250.73,0.00027397,2]
[362408930,1748256641480,-9999.99,0.00027397,2]
[362408932,1748256641489,-150.99,0.00027397,2]
[362408934,1748256641498,-9999.99,0.00027397,2]
[362408936,1748256641508,-2856.83,0.00027397,2]
[362408938,1748256641516,-999.99,0.00027397,2]
[362408940,1748256641526,-150.0,0.00027424,2]
[362408941,1748256641535,-158.13039703,0.00027424,2]
[362408943,1748256641546,-150.0,0.00027424,2]
[362408945,1748256641555,-150.0,0.00027424,2]
[362408947,1748256641565,-150.0,0.00027424,2]
[362408950,1748256641576,-150.0,0.00027424,2]
[362408952,1748256641586,-161.32,0.00027431,2]
[362408953,1748256641595,-150.0,0.00027451,2]
[362408955,1748256641604,-275.09730309,0.00027451,2]
[362408957,1748256641613,-150.0,0.00027451,2]
[362408959,1748256641623,-200.0,0.00027479,2]
[362408961,1748256641633,-200.0,0.00027479,2]
[362408963,1748256641642,-500.0,0.00027658,2]
[362408965,1748256641652,-500.0,0.00027722,2]
[362408967,1748256641662,-533.08429402,0.00027866,17]
[362408969,1748256641672,-324.77,0.0002795,120]
[362408971,1748256641683,-277.61,0.00028,2]
[362408973,1748256641693,-500.0,0.0002805,5]
[362408975,1748256641703,-150.0,0.00028118,2]
[362408977,1748256641713,-798.69,0.00028285,2]
[362408979,1748256641725,-1000.0,0.00028394,2]
[362408981,1748256641735,-500.0,0.00028397,2]
[362408983,1748256641745,-538.83228188,0.00028449,2]
[362408985,1748256641755,-1000.0,0.00028598,5]
[362408987,1748256641765,-809.366,0.00028669,2]
[362408989,1748256641774,-1328.0,0.00028669,2]
[362408991,1748256641784,-800.0,0.00028669,2]
[362408993,1748256641796,-923.0,0.00028669,2]
[362408995,1748256641805,-1463.0,0.00028669,2]
[362408997,1748256641815,-555.0,0.00028669,2]
[362408999,1748256641826,-865.0,0.00028669,2]
[362409001,1748256641837,-6920.0,0.00028669,2]
[362409003,1748256641846,-166.776,0.00028669,2]
[362409005,1748256641856,-4129.32,0.00028669,2]
[362409006,1748256641866,-885.255,0.00028669,2]
[362409009,1748256641875,-150.0,0.00028839,2]
[362409011,1748256641885,-500.0,0.00028929,2]
[362409012,1748256641895,-154.0,0.00029,2]
[362409015,1748256641905,-533.08429402,0.00029003,20]
[362409017,1748256641914,-1622.43,0.00029099,2]
[362409019,1748256641925,-1500.0,0.00029146,5]
[362409021,1748256641935,-500.0,0.00029182,2]
[362409023,1748256641944,-500.0,0.0002931,2]
[362409025,1748256641954,-3269.0,0.00029395,2]
[362409027,1748256641964,-500.0,0.00029443,2]
[362409029,1748256641977,-7591.06985437,0.00029478,2]
[362409031,1748256641986,-150.0,0.0002956,2]
[362409033,1748256641995,-500.0,0.00029585,2]
[362409035,1748256642004,-2000.0,0.00029694,5]
[362409037,1748256642014,-1425.02011923,0.00029696,2]
[362409039,1748256642024,-600.0,0.00029697,2]
[362409041,1748256642033,-500.0,0.00029737,2]
[362409043,1748256642045,-500.0,0.0002985,2]
[362409045,1748256642054,-500.0,0.00029875,2]
[362409047,1748256642064,-150.0,0.0003,2]
[362409049,1748256642073,-214.0,0.0003,2]
[362409051,1748256642082,-500.0,0.00030138,7]
[362409053,1748256642092,-533.08429402,0.00030141,22]
[362409055,1748256642101,-240.08151178,0.00030242,5]
[362409057,1748256642111,-600.0,0.0003028,7]
[362409058,1748256642120,-150.0,0.00030281,2]
[362409060,1748256642129,-500.0,0.00030307,7]
[362409062,1748256642139,-600.0,0.00030315,7]
[362409064,1748256642148,-500.0,0.00030395,7]
[362409066,1748256642157,-798.69,0.00030548,2]
[362409068,1748256642166,-500.0,0.00030788,7]
[362409070,1748256642176,-500.0,0.00030841,7]
[362409072,1748256642186,-1814.1,0.000309,7]
[362409074,1748256642196,-500.0,0.00030947,7]
[362409076,1748256642205,-307.05090631,0.00031,2]
[362409078,1748256642215,-180.0,0.00031,120]
[362409080,1748256642226,-150.0,0.00031002,2]
[362409082,1748256642235,-600.0,0.00031215,7]
[362409084,1748256642245,-500.0,0.00031258,7]
[362409086,1748256642255,-533.08429402,0.00031279,24]
[362409088,1748256642264,-500.0,0.00031352,7]
[362409090,1748256642274,-500.0,0.00031389,7]
[362409092,1748256642283,-500.0,0.00031432,7]
[362409094,1748256642292,-800.0,0.00031669,2]
[362409096,1748256642302,-923.0,0.00031669,2]
[362409098,1748256642317,-1458.813,0.00031669,2]
[362409115,1748256642489,-555.0,0.00031669,2]
[362409116,1748256642500,-4162.385,0.00031669,2]
[362409117,1748256642511,-154.0,0.00031669,2]
[362409118,1748256642520,-4059.0,0.00031669,2]
[362409119,1748256642530,-881.0,0.00031669,2]
[362409120,1748256642540,-500.0,0.00031713,7]
[362409121,1748256642551,-150.0,0.00031723,2]
[362409122,1748256642561,-500.0,0.00031877,7]
[362409123,1748256642571,-600.0,0.00032142,7]
[362409124,1748256642581,-500.0,0.00032281,7]
[362409126,1748256642591,-600.0,0.00032385,7]
[362409128,1748256642600,-533.08429402,0.00032417,26]
[362409130,1748256642610,-150.0,0.00032444,2]
[362409132,1748256642619,-500.0,0.00032689,7]
[362409134,1748256642629,-500.0,0.00032759,7]
[362409136,1748256642639,-600.0,0.00032775,7]
[362409138,1748256642648,-798.69,0.00032812,2]
[362409140,1748256642658,-7591.06985437,0.00032813,2]
[362409142,1748256642667,-332.78,0.00032877,2]
[362409144,1748256642677,-930.0,0.00032877,2]
[362409146,1748256642686,-150.0,0.00032877,2]
[362409148,1748256642696,-930.0,0.00032904,2]
[362409150,1748256642705,-150.0,0.00032904,2]
[362409152,1748256642715,-930.0,0.00032932,2]
[362409154,1748256642724,-150.0,0.00032932,2]
[362409156,1748256642734,-930.0,0.00032959,2]
[362409158,1748256642744,-150.0,0.00032959,2]
[362409160,1748256642753,-930.0,0.00032987,2]
[362409163,1748256642763,-150.0,0.00032987,2]
[362409165,1748256642773,-1425.02011923,0.00032995,2]
[362409168,1748256642783,-600.0,0.00032998,7]
[362409170,1748256642792,-160.0,0.00033,2]
[362409172,1748256642802,-160.0,0.00033,2]
[362409174,1748256642811,-160.0,0.00033,2]
[362409176,1748256642821,-160.0,0.00033,2]
[362409178,1748256642830,-160.0,0.00033,2]
[362409181,1748256642839,-160.0,0.00033,2]
[362409183,1748256642849,-160.0,0.00033,2]
[362409185,1748256642858,-160.0,0.00033,2]
[362409186,1748256642867,-160.0,0.00033,2]
[362409189,1748256642877,-160.0,0.00033,2]
[362409190,1748256642887,-160.0,0.00033,2]
[362409192,1748256642897,-186.599999,0.00033,2]
[362409194,1748256642906,-214.0,0.00033,2]
[362409198,1748256642916,-930.0,0.00033014,2]
[362409199,1748256642926,-230.77136575,0.00033014,2]
[362409201,1748256642936,-600.0,0.00033034,7]
[362409204,1748256642946,-930.0,0.00033041,2]
[362409206,1748256642957,-930.0,0.00033069,2]
[362409207,1748256642966,-930.0,0.00033096,2]
[362409209,1748256642976,-930.0,0.00033124,2]
[362409211,1748256642986,-200.0,0.00033151,2]
[362409213,1748256642995,-930.0,0.00033151,2]
[362409215,1748256643005,-175.97,0.00033165,2]
[362409217,1748256643016,-150.0,0.00033165,2]
[362409219,1748256643025,-930.0,0.00033178,2]
[362409222,1748256643035,-930.0,0.00033206,2]
[362409223,1748256643046,-930.0,0.00033233,2]
[362409225,1748256643056,-930.0,0.00033261,2]
[362409227,1748256643066,-930.0,0.00033288,2]
[362409229,1748256643076,-600.0,0.00033293,7]
[362409231,1748256643085,-500.0,0.00033312,7]
[362409233,1748256643095,-500.0,0.00033315,7]
[362409235,1748256643104,-930.0,0.00033315,2]
[362409238,1748256643114,-930.0,0.00033343,2]
[362409240,1748256643124,-930.0,0.0003337,2]
[362409242,1748256643133,-930.0,0.00033398,2]
[362409244,1748256643143,-500.0,0.00033409,7]
[362409246,1748256643152,-930.0,0.00033425,2]
[362409248,1748256643163,-500.0,0.00033426,7]
[362409250,1748256643172,-930.0,0.00033452,2]
[362409252,1748256643182,-930.0,0.0003348,2]
[362409254,1748256643192,-158.21395899,0.00033507,2]
[362409256,1748256643201,-150.40224288,0.00033507,2]
[362409258,1748256643211,-150.0,0.00033507,2]
[362409259,1748256643220,-153.6551418,0.00033507,2]
[362409261,1748256643230,-150.0,0.00033507,2]
[362409264,1748256643240,-212.45507551,0.00033507,2]
[362409266,1748256643250,-150.0,0.00033507,2]
[362409268,1748256643259,-944.13040119,0.00033507,2]
[362409269,1748256643270,-533.08429402,0.00033555,29]
[362409271,1748256643279,-160.0,0.000336,5]
[362409273,1748256643289,-500.0,0.00033627,7]
[362409275,1748256643302,-600.0,0.00033663,7]
[362409278,1748256643316,-600.0,0.00033688,7]
[362409279,1748256643326,-600.0,0.00033787,7]
[362409281,1748256643336,-500.0,0.00033787,7]
[362409284,1748256643347,-150.0,0.00033886,2]
[362409285,1748256643357,-500.0,0.00033919,7]
[362409287,1748256643366,-154.0,0.00033938,2]
[362409289,1748256643375,-1341.45,0.00033939,37]
[362409291,1748256643386,-188.96,0.00033939,37]
[362409293,1748256643396,-500.0,0.00033941,7]
[362409295,1748256643405,-1938.0,0.0003395,2]
[362409297,1748256643414,-500.0,0.00034181,7]
[362409299,1748256643424,-500.0,0.00034289,7]
[362409301,1748256643433,-1938.0,0.000343,2]
[362409303,1748256643443,-620.43644988,0.00034382,30]
[362409305,1748256643452,-150.0,0.00034382,2]
[362409307,1748256643461,-500.0,0.00034391,7]
[362409309,1748256643471,-500.0,0.0003447,7]
[362409311,1748256643480,-160.0,0.000346,9]
[362409313,1748256643489,-150.0,0.00034607,2]
[362409315,1748256643499,-1938.0,0.0003465,2]
[362409317,1748256643509,-800.0,0.00034669,2]
[362409319,1748256643518,-466.413,0.00034669,2]
[362409321,1748256643527,-436.648,0.00034669,2]
[362409323,1748256643537,-154.0,0.00034669,2]
[362409325,1748256643549,-4059.0,0.00034669,2]
[362409327,1748256643559,-881.0,0.00034669,2]
[362409329,1748256643568,-533.08429402,0.00034693,31]
[362409331,1748256643577,-500.0,0.00034809,7]
[362409333,1748256643588,-600.0,0.00034833,7]
[362409336,1748256643598,-600.0,0.00034965,7]
[362409339,1748256643607,-1938.0,0.00035,2]
[362409341,1748256643616,-626.19728516,0.00035,2]
[362409343,1748256643626,-2496.42088966,0.00035,120]
[362409345,1748256643635,-170.0,0.00035,120]
[362409347,1748256643644,-798.69,0.00035076,2]
[362409349,1748256643654,-500.0,0.00035094,7]
[362409351,1748256643663,-5561.0,0.000351,5]
[362409353,1748256643673,-150.0,0.00035328,2]
[362409356,1748256643682,-1938.0,0.0003535,2]
[362409358,1748256643692,-600.0,0.00035418,7]
[362409360,1748256643701,-160.0,0.000356,13]
[362409362,1748256643711,-158.32373336,0.00035616,2]
[362409364,1748256643721,-600.0,0.00035672,7]
[362409366,1748256643731,-1938.0,0.000357,2]
[362409368,1748256643740,-150.0,0.00035752,2]
[362409370,1748256643749,-533.08429402,0.00035831,33]
[362409372,1748256643759,-150.0,0.00036049,2]
[362409374,1748256643768,-1938.0,0.0003605,2]
[362409376,1748256643778,-500.0,0.00036087,7]
[362409378,1748256643787,-7591.06985437,0.00036149,2]
[362409380,1748256643798,-500.0,0.000362,2]
[362409382,1748256643808,-1425.02011923,0.00036293,2]
[362409384,1748256643818,-160.0,0.000366,18]
[362409386,1748256643827,-2000.0,0.000367,2]
[362409388,1748256643837,-150.0,0.0003677,2]
[362409390,1748256643847,-600.0,0.00036808,7]
[362409391,1748256643856,-600.0,0.00036896,7]
[362409393,1748256643865,-533.08429402,0.00036969,35]
[362409395,1748256643875,-500.0,0.00037044,7]
[362409397,1748256643884,-150.0,0.00037122,2]
[362409399,1748256643894,-500.0,0.00037145,7]
[362409401,1748256643903,-689.87588286,0.000372,120]
[362409403,1748256643913,-689.87588284,0.000372,120]
[362409405,1748256643923,-689.87588284,0.000372,120]
[362409407,1748256643932,-500.0,0.00037328,7]
[362409409,1748256643942,-798.69,0.0003734,2]
[362409411,1748256643952,-150.0,0.00037491,2]
[362409413,1748256643961,-500.0,0.00037585,7]
[362409415,1748256643970,-160.0,0.000376,22]
[362409417,1748256643980,-1500.0,0.00037612,2]
[362409419,1748256643990,-800.0,0.00037669,2]
[362409421,1748256643999,-500.0,0.00037838,7]
[362409423,1748256644009,-600.0,0.00037874,7]
[362409425,1748256644019,-800.0,0.000379,13]
[362409427,1748256644028,-533.08429402,0.00038107,38]
[362409429,1748256644037,-150.0,0.00038212,2]
[362409431,1748256644049,-528.85,0.00038255,2]
[362409433,1748256644058,-150.0,0.00038492,2]
[362409435,1748256644067,-160.68194755,0.00038537,7]
[362409437,1748256644077,-160.0,0.000386,26]
[362409439,1748256644086,-500.0,0.00038615,7]
[362409441,1748256644096,-600.0,0.00038746,7]
[362409443,1748256644105,-150.0,0.00038933,2]
[362409445,1748256644115,-159.42692917,0.00039,2]
[362409447,1748256644124,-1511.75,0.000392,14]
[362409449,1748256644133,-600.0,0.00039213,7]
[362409451,1748256644143,-533.08429402,0.00039245,40]
[362409453,1748256644152,-365.108113,0.000393,18]
[362409455,1748256644161,-410.51,0.00039377,2]
[362409457,1748256644170,-4000.0,0.00039379,8]
[362409459,1748256644179,-410.51,0.00039387,2]
[362409461,1748256644188,-410.51,0.00039398,2]
[362409463,1748256644198,-410.51,0.00039408,2]
[362409465,1748256644208,-410.51,0.00039419,2]
[362409467,1748256644218,-410.51,0.00039429,2]
[362409468,1748256644228,-410.51,0.00039439,2]
[362409469,1748256644237,-500.0,0.00039441,7]
[362409470,1748256644246,-410.51,0.0003945,2]
[362409471,1748256644255,-500.0,0.00039457,7]
[362409472,1748256644264,-410.51,0.0003946,2]
[362409473,1748256644273,-500.0,0.0003946,7]
[362409474,1748256644282,-410.51,0.0003947,2]
[362409475,1748256644291,-410.51,0.00039481,2]
[362409476,1748256644303,-7591.06985437,0.00039484,2]
[362409477,1748256644316,-410.51,0.00039491,2]
[362409478,1748256644325,-2000.0,0.000395,2]
[362409480,1748256644335,-997.9,0.000395,2]
[362409482,1748256644345,-500.0,0.00039501,7]
[362409484,1748256644354,-410.51,0.00039501,2]
[362409486,1748256644364,-410.51,0.00039512,2]
[362409487,1748256644373,-410.51,0.00039522,2]
[362409489,1748256644383,-410.51,0.00039532,2]
[362409491,1748256644392,-410.51,0.00039543,2]
[362409493,1748256644403,-410.51,0.00039553,2]
[362409495,1748256644412,-410.51,0.00039564,2]
[362409497,1748256644422,-500.0,0.00039573,7]
[362409499,1748256644431,-410.51,0.00039574,2]
[362409501,1748256644440,-600.0,0.00039585,7]
[362409503,1748256644450,-1425.02011923,0.00039592,2]
[362409505,1748256644461,-160.0,0.000396,31]
[362409507,1748256644471,-500.0,0.00039601,7]
[362409509,1748256644481,-798.69,0.00039604,2]
[362409511,1748256644491,-175.97,0.00039654,2]
[362409513,1748256644500,-150.0,0.00039654,2]
[362409515,1748256644510,-600.0,0.00039697,7]
[362409517,1748256644520,-375.0,0.000397,2]
[362409519,1748256644529,-766.0,0.000397,2]
[362409521,1748256644538,-237.0,0.000397,2]
[362409523,1748256644549,-2227.71,0.00039822,2]
[362409525,1748256644558,-150.0,0.00039862,2]
[362409527,1748256644572,-158.0,0.0004,30]
[362409529,1748256644582,-1612.89798731,0.0004,10]
[362409531,1748256644592,-891.776907,0.00040116,12]
[362409533,1748256644601,-600.0,0.00040244,30]
[362409535,1748256644611,-150.0,0.00040375,2]
[362409537,1748256644621,-533.08429402,0.00040383,42]
[362409539,1748256644630,-737.38596,0.000404,20]
[362409541,1748256644641,-158.34659,0.000404,8]
[362409543,1748256644651,-166.8,0.00040425,2]
[362409545,1748256644661,-160.0,0.000406,35]
[362409547,1748256644671,-500.0,0.00040624,30]
[362409549,1748256644680,-800.0,0.00040669,2]
[362409551,1748256644690,-600.0,0.00040844,30]
[362409553,1748256644700,-500.0,0.00040847,30]
[362409555,1748256644709,-600.0,0.00040904,30]
[362409557,1748256644719,-718.60742665,0.0004093,2]
[362409559,1748256644729,-4000.0,0.0004094,6]
[362409561,1748256644739,-19153.55459914,0.0004095,2]
[362409563,1748256644749,-250.0,0.00041,90]
[362409565,1748256644759,-500.0,0.00041031,30]
[362409567,1748256644769,-211.0,0.0004106,2]
[362409569,1748256644779,-4000.0,0.00041096,2]
[362409571,1748256644788,-150.0,0.00041096,2]
[362409573,1748256644799,-500.0,0.00041143,30]
[362409575,1748256644808,-154.7,0.00041232,120]
[362409577,1748256644818,-500.0,0.00041244,30]
[362409579,1748256644828,-225.57139242,0.00041276,30]
[362409581,1748256644838,-210.34,0.000413,41]
[362409583,1748256644847,-200.0,0.000413,21]
[362409585,1748256644858,-169.06850553,0.0004135,120]
[362409587,1748256644868,-200.31040901,0.00041355,14]
[362409589,1748256644877,-151.0,0.00041355,14]
[362409605,1748256644887,-151.0,0.00041355,14]
[362409607,1748256645040,-151.0,0.00041355,14]
[362409609,1748256645051,-151.0,0.00041355,14]
[362409611,1748256645061,-151.0,0.00041355,14]
[362409613,1748256645071,-232.52569135,0.00041355,14]
[362409615,1748256645081,-200.0,0.00041356,7]
[362409617,1748256645090,-5180.8102861,0.00041362,2]
[362409619,1748256645100,-12791.5329848,0.00041369,2]
[362409621,1748256645110,-300.0,0.0004137,3]
[362409623,1748256645119,-400.0,0.0004137,3]
[362409625,1748256645129,-155.09069364,0.00041387,15]
[362409627,1748256645138,-500.0,0.00041397,120]
[362409629,1748256645148,-500.0,0.00041397,120]
[362409631,1748256645157,-500.0,0.00041397,120]
[362409633,1748256645167,-500.0,0.00041397,120]
[362409635,1748256645176,-500.0,0.00041397,120]
[362409637,1748256645186,-500.0,0.00041397,120]
[362409639,1748256645195,-500.0,0.00041397,120]
[362409641,1748256645205,-500.0,0.00041397,120]
[362409643,1748256645215,-500.0,0.00041397,120]
[362409645,1748256645225,-500.0,0.00041397,120]
[362409647,1748256645235,-500.0,0.00041397,120]
[362409649,1748256645244,-500.0,0.00041397,120]
[362409651,1748256645253,-500.0,0.00041397,120]
[362409653,1748256645263,-608.37848552,0.00041397,120]
[362409655,1748256645273,-1200.0,0.000414,2]
[362409657,1748256645283,-6777.77570134,0.00041417,3]
[362409659,1748256645293,-490.93823893,0.00041477,7]
[362409661,1748256645304,-27111.98625995,0.00041487,120]
[362409663,1748256645317,-2653.8310446,0.00041487,120]
[362409665,1748256645326,-2264.36002894,0.00041487,120]
[362409667,1748256645335,-69999.999999,0.00041487,120]
[362409669,1748256645346,-566.39465191,0.00041487,120]
[362409671,1748256645356,-375.31709759,0.00041487,2]
[362409672,1748256645366,-161.8,0.00041487,2]
[362409674,1748256645376,-151.0,0.00041487,120]
[362409677,1748256645388,-200.0,0.00041487,120]
[362409679,1748256645398,-151.0,0.00041487,120]
[362409681,1748256645408,-207.4,0.00041487,120]
[362409683,1748256645417,-151.0,0.00041487,120]
[362409685,1748256645427,-151.0,0.00041487,120]
[362409687,1748256645436,-215.0738,0.00041487,120]
[362409689,1748256645445,-223.0315306,0.00041487,120]
[362409691,1748256645455,-231.28369723,0.00041487,120]
[362409693,1748256645464,-239.84119403,0.00041487,120]
[362409694,1748256645474,-248.71531821,0.00041487,120]
[362409696,1748256645483,-257.91778498,0.00041487,120]
[362409698,1748256645492,-267.46074303,0.00041487,120]
[362409700,1748256645502,-277.35679052,0.00041487,120]
[362409702,1748256645512,-300.0,0.00041487,120]
[362409704,1748256645521,-1000.0,0.00041487,120]
[362409706,1748256645531,-287.61899177,0.00041487,120]
[362409708,1748256645540,-300.0,0.00041487,120]
[362409710,1748256645550,-298.26089446,0.00041487,120]
[362409712,1748256645559,-300.0,0.00041487,120]
[362409714,1748256645568,-309.29654756,0.00041487,120]
[362409716,1748256645578,-300.0,0.00041487,120]
[362409718,1748256645587,-320.74051982,0.00041487,120]
[362409720,1748256645596,-332.60791905,0.00041487,120]
[362409722,1748256645605,-300.0,0.00041487,120]
[362409724,1748256645614,-344.91441206,0.00041487,120]
[362409726,1748256645623,-300.0,0.00041487,120]
[362409728,1748256645632,-357.6762453,0.00041487,120]
[362409730,1748256645642,-370.91026638,0.00041487,120]
[362409732,1748256645651,-384.63394623,0.00041487,120]
[362409734,1748256645660,-384.63394623,0.00041487,120]
[362409736,1748256645669,-160.0,0.00041487,30]
[362409738,1748256645680,-160.0,0.00041487,30]
[362409740,1748256645689,-160.0,0.00041487,30]
[362409742,1748256645700,-186.4,0.00041487,30]
[362409744,1748256645710,-300.0,0.00041487,120]
[362409746,1748256645719,-300.0,0.00041487,120]
[362409748,1748256645730,-276121.16964929,0.00041487,30]
[362409768,1748256645995,-4369.9499753,0.00041487,30]
[362409770,1748256646006,-9810.81448674,0.00041487,30]
[362409772,1748256646021,-26278.35815587,0.00041487,30]
[362409774,1748256646032,-14933.12580403,0.00041487,30]
[362409777,1748256646044,-387.67066458,0.00041487,30]
[362409779,1748256646055,-1083.88047786,0.00041487,30]
[362409782,1748256646082,-1037.76463677,0.00041487,30]
[362409804,1748256646281,-215977.26614856,0.00041487,30]
[362409806,1748256646291,-533.08429402,0.00041521,44]
[362409808,1748256646302,-160.0,0.000416,40]
[362409810,1748256646315,-386.0,0.000416,2]
[362409812,1748256646324,-200.0,0.0004177,7]
[362409814,1748256646333,-798.69,0.00041868,2]
[362409816,1748256646343,-6777.77570134,0.0004188,3]
[362409818,1748256646353,-13555.5514027,0.0004189,3]
[362409820,1748256646363,-20000.0,0.000419,120]
[362409822,1748256646373,-1600.0,0.000419,15]
[362409824,1748256646384,-566.7,0.000419,14]
[362409826,1748256646394,-27111.1028054,0.0004198,3]
[362409828,1748256646404,-27111.1028054,0.0004199,3]
[362409830,1748256646413,-1000.0,0.00042,120]
[362409832,1748256646423,-52227.35980667,0.00042,120]
[362409834,1748256646432,-511.09868853,0.00042,18]
[362409836,1748256646441,-200.0,0.00042187,7]
[362409838,1748256646451,-2000.0,0.000422,2]
[362409840,1748256646460,-160.0,0.000426,44]
[362409842,1748256646470,-566.7,0.000426,14]
[362409844,1748256646480,-200.0,0.00042609,7]
[362409846,1748256646489,-533.08429402,0.00042659,47]
[362409848,1748256646499,-7591.06985437,0.00042819,15]
[362409850,1748256646508,-211.0,0.0004282,2]
[362409852,1748256646518,-1425.02011923,0.00042891,15]
[362409854,1748256646527,-200.0,0.00043035,7]
[362409856,1748256646537,-13555.5514027,0.00043232,3]
[362409858,1748256646547,-19945.79,0.00043242,120]
[362409860,1748256646556,-689.87588284,0.00043427,120]
[362409862,1748256646566,-4000.0,0.0004344,18]
[362409864,1748256646576,-160.0,0.000436,48]
[362409866,1748256646586,-199.534,0.00043669,2]
[362409868,1748256646596,-6777.77570134,0.0004372,3]
[362409870,1748256646605,-9108.0,0.0004373,117]
[362409872,1748256646615,-533.08429402,0.00043797,49]
[362409874,1748256646624,-101666.63552,0.0004388,3]
[362409876,1748256646633,-500.0,0.0004389,120]
[362409877,1748256646643,-500.0,0.0004389,120]
[362409879,1748256646652,-500.0,0.0004389,120]
[362409881,1748256646661,-500.0,0.0004389,120]
[362409882,1748256646671,-500.0,0.0004389,120]
[362409884,1748256646680,-500.0,0.0004389,120]
[362409885,1748256646690,-500.0,0.0004389,120]
[362409887,1748256646700,-500.0,0.0004389,120]
[362409889,1748256646710,-500.0,0.0004389,120]
[362409890,1748256646721,-500.0,0.0004389,120]
[362409892,1748256646730,-500.0,0.0004389,120]
[362409893,1748256646741,-500.0,0.0004389,120]
[362409895,1748256646750,-500.0,0.0004389,120]
[362409896,1748256646760,-500.0,0.0004389,120]
[362409898,1748256646770,-500.0,0.0004389,120]
[362409899,1748256646779,-500.0,0.0004389,120]
[362409901,1748256646788,-500.0,0.0004389,120]
[362409902,1748256646798,-500.0,0.0004389,120]
[362409904,1748256646808,-500.0,0.0004389,120]
[362409906,1748256646817,-500.0,0.0004389,120]
[362409907,1748256646827,-500.0,0.0004389,120]
[362409909,1748256646836,-500.0,0.0004389,120]
[362409910,1748256646845,-500.0,0.0004389,120]
[362409912,1748256646854,-500.0,0.0004389,120]
[362409913,1748256646863,-500.0,0.0004389,120]
[362409915,1748256646873,-500.0,0.0004389,120]
[362409916,1748256646883,-500.0,0.0004389,120]